[Event "Titled Tuesday Blitz April 26 Early 2022"]
[White "Tristan, Leonardo"]
[Black "Demchenko, Anton"]
[WhiteFideId "113816"]
[BlackFideId "4160258"]
[WhiteElo "2404"]
[BlackElo "2539"]
[Result "0-1"]
[Round "05"]
[TimeControl "180+1"]
[Date "2022.04.26"]
[WhiteClock "0:00:11"]
[BlackClock "0:00:17"]

1. d4 {[%clk 0:02:58]}  Nf6 {[%clk 0:02:57]} 2. Nf3 {[%clk 0:02:59]}  d6 {[%clk 0:02:57]} 3. Bf4 {[%clk 0:02:59]}  g6 {[%clk 0:02:57]} 4. e3 {[%clk 0:03:00]}  Bg7 {[%clk 0:02:58]} 5. Be2 {[%clk 0:03:00]}  O-O {[%clk 0:02:58]} 6. O-O {[%clk 0:03:01]}  b6 {[%clk 0:02:58]} 7. h3 {[%clk 0:03:01]}  Bb7 {[%clk 0:02:58]} 8. Bh2 {[%clk 0:03:02]}  Nbd7 {[%clk 0:02:58]} 9. a4 {[%clk 0:03:02]}  a6 {[%clk 0:02:58]} 10. Nbd2 {[%clk 0:03:02]}  Ne4 {[%clk 0:02:57]} 11. Nxe4 {[%clk 0:03:02]}  Bxe4 {[%clk 0:02:58]} 12. Nd2 {[%clk 0:03:02]}  Bb7 {[%clk 0:02:59]} 13. Bf3 {[%clk 0:03:03]}  Qc8 {[%clk 0:02:59]} 14. c3 {[%clk 0:03:03]}  c5 {[%clk 0:02:59]} 15. Qb3 {[%clk 0:03:03]}  Rb8 {[%clk 0:02:57]} 16. Rfd1 {[%clk 0:03:02]}  h6 {[%clk 0:02:54]} 17. Rac1 {[%clk 0:03:02]}  Bc6 {[%clk 0:02:50]} 18. c4 {[%clk 0:02:22]}  cxd4 {[%clk 0:02:42]} 19. exd4 {[%clk 0:02:22]}  Bxd4 {[%clk 0:02:30]} 20. Ne4 {[%clk 0:01:33]}  Nc5 {[%clk 0:02:24]} 21. Qa3 {[%clk 0:01:09]}  Bg7 {[%clk 0:02:08]} 22. Nd2 {[%clk 0:00:59]}  Nxa4 {[%clk 0:02:00]} 23. b3 {[%clk 0:00:59]}  Bb2 {[%clk 0:01:51]} 24. Qa2 {[%clk 0:00:59]}  Bxc1 {[%clk 0:01:51]} 25. Rxc1 {[%clk 0:00:59]}  Nc5 {[%clk 0:01:49]} 26. Be2 {[%clk 0:00:59]}  a5 {[%clk 0:01:46]} 27. Rb1 {[%clk 0:00:59]}  e5 {[%clk 0:01:42]} 28. Qc2 {[%clk 0:00:59]}  Qf5 {[%clk 0:01:41]} 29. Qc1 {[%clk 0:00:59]}  Nd3 {[%clk 0:01:28]} 30. Qf1 {[%clk 0:00:58]}  Nf4 {[%clk 0:01:28]} 31. Bg4 {[%clk 0:00:54]}  Qd3 {[%clk 0:01:24]} 32. Qxd3 {[%clk 0:00:50]}  Nxd3 {[%clk 0:01:24]} 33. Rd1 {[%clk 0:00:50]}  f5 {[%clk 0:01:22]} 34. Be2 {[%clk 0:00:50]}  Nc5 {[%clk 0:01:21]} 35. Kf1 {[%clk 0:00:48]}  f4 {[%clk 0:01:15]} 36. f3 {[%clk 0:00:48]}  Rfd8 {[%clk 0:01:12]} 37. Bg1 {[%clk 0:00:48]}  Kg7 {[%clk 0:01:11]} 38. Rb1 {[%clk 0:00:47]}  g5 {[%clk 0:01:11]} 39. Bd1 {[%clk 0:00:47]}  Kf6 {[%clk 0:01:10]} 40. Bc2 {[%clk 0:00:47]}  Ke6 {[%clk 0:01:08]} 41. Ra1 {[%clk 0:00:48]}  Ra8 {[%clk 0:01:00]} 42. Ke2 {[%clk 0:00:47]}  Rdb8 {[%clk 0:01:00]} 43. Rd1 {[%clk 0:00:38]}  d5 {[%clk 0:00:50]} 44. Bxc5 {[%clk 0:00:33]}  bxc5 {[%clk 0:00:50]} 45. cxd5+ {[%clk 0:00:34]}  Bxd5 {[%clk 0:00:50]} 46. Be4 {[%clk 0:00:33]}  Rd8 {[%clk 0:00:40]} 47. Rc1 {[%clk 0:00:34]}  Rac8 {[%clk 0:00:40]} 48. Ra1 {[%clk 0:00:33]}  Bxe4 {[%clk 0:00:33]} 49. Nxe4 {[%clk 0:00:33]}  c4 {[%clk 0:00:34]} 50. bxc4 {[%clk 0:00:33]}  Rxc4 {[%clk 0:00:32]} 51. Rxa5 {[%clk 0:00:33]}  Rc2+ {[%clk 0:00:32]} 52. Ke1 {[%clk 0:00:34]}  Rb8 {[%clk 0:00:29]} 53. Ra6+ {[%clk 0:00:33]}  Ke7 {[%clk 0:00:29]} 54. Ra7+ {[%clk 0:00:29]}  Kf8 {[%clk 0:00:29]} 55. Kd1 {[%clk 0:00:23]}  Rxg2 {[%clk 0:00:29]} 56. Kc1 {[%clk 0:00:23]}  Rc8+ {[%clk 0:00:27]} 57. Kd1 {[%clk 0:00:19]}  Rb8 {[%clk 0:00:27]} 58. Kc1 {[%clk 0:00:19]}  Rb6 {[%clk 0:00:16]} 59. Ra8+ {[%clk 0:00:16]}  Ke7 {[%clk 0:00:17]} 60. Ra7+ {[%clk 0:00:16]}  Kd8 {[%clk 0:00:17]} 61. Ra8+ {[%clk 0:00:15]}  Kc7 {[%clk 0:00:17]} 62. Ra7+ {[%clk 0:00:16]}  Kb8 {[%clk 0:00:18]} 63. Rh7 {[%clk 0:00:11]}  Rh2 {[%clk 0:00:18]} 64. Rxh6 {[%clk 0:00:11]}  Rxh6 {[%clk 0:00:17]} 0-1


[Site "https://www.chess.com"]

[Event "Titled Tuesday Blitz April 26 Early 2022"]
[White "Tymrakiewicz, Rafal"]
[Black "Cagara, Paulina"]
[WhiteFideId "1108832"]
[BlackFideId "1124870"]
[WhiteElo "2205"]
[BlackElo "1780"]
[Result "0-1"]
[Round "05"]
[TimeControl "180+1"]
[Date "2022.04.26"]
[WhiteClock "0:00:01"]
[BlackClock "0:01:23"]

1. e4 {[%clk 0:02:34]}  c6 {[%clk 0:02:54]} 2. d4 {[%clk 0:02:33]}  d5 {[%clk 0:02:53]} 3. exd5 {[%clk 0:02:34]}  cxd5 {[%clk 0:02:53]} 4. c4 {[%clk 0:02:35]}  Nf6 {[%clk 0:02:53]} 5. Nc3 {[%clk 0:02:36]}  Nc6 {[%clk 0:02:53]} 6. Bg5 {[%clk 0:02:36]}  dxc4 {[%clk 0:02:51]} 7. Bxc4 {[%clk 0:02:06]}  Qxd4 {[%clk 0:02:50]} 8. Qb3 {[%clk 0:02:05]}  e6 {[%clk 0:02:40]} 9. Nf3 {[%clk 0:02:05]}  Qb6 {[%clk 0:02:35]} 10. Qxb6 {[%clk 0:02:04]}  axb6 {[%clk 0:02:34]} 11. O-O {[%clk 0:02:01]}  Be7 {[%clk 0:02:32]} 12. Rfd1 {[%clk 0:01:50]}  O-O {[%clk 0:02:31]} 13. Rd2 {[%clk 0:01:50]}  e5 {[%clk 0:02:27]} 14. Re1 {[%clk 0:01:36]}  Bb4 {[%clk 0:02:16]} 15. Nxe5 {[%clk 0:01:19]}  Bxc3 {[%clk 0:02:13]} 16. bxc3 {[%clk 0:01:18]}  Ra3 {[%clk 0:02:07]} 17. Bxf6 {[%clk 0:00:36]}  gxf6 {[%clk 0:02:06]} 18. Nd7 {[%clk 0:00:07]}  Bxd7 {[%clk 0:02:05]} 19. Rxd7 {[%clk 0:00:08]}  Rxc3 {[%clk 0:02:05]} 20. Bd5 {[%clk 0:00:07]}  Nb4 {[%clk 0:01:54]} 21. Bb3 {[%clk 0:00:04]}  Rfc8 {[%clk 0:01:34]} 22. Bxf7+ {[%clk 0:00:01]}  Kf8 {[%clk 0:01:33]} 23. g3 {[%clk 0:00:02]}  Rc1 {[%clk 0:01:31]} 24. Rxc1 {[%clk 0:00:02]}  Rxc1+ {[%clk 0:01:31]} 25. Kg2 {[%clk 0:00:03]}  Rc2 {[%clk 0:01:26]} 26. Bb3 {[%clk 0:00:01]}  Rb2 {[%clk 0:01:23]} 0-1


[Site "https://www.chess.com"]

[Event "Titled Tuesday Blitz April 26 Early 2022"]
[White "Urbina Perez, Juan Antonio"]
[Black "Rosenberg, Evan S"]
[WhiteFideId "2217368"]
[BlackFideId "2019299"]
[WhiteElo "2192"]
[BlackElo "2349"]
[Result "0-1"]
[Round "05"]
[TimeControl "180+1"]
[Date "2022.04.26"]
[WhiteClock "0:00:24"]
[BlackClock "0:00:09"]

1. e4 {[%clk 0:03:00]}  e5 {[%clk 0:02:59]} 2. Nf3 {[%clk 0:02:57]}  Nc6 {[%clk 0:03:00]} 3. Bb5 {[%clk 0:02:55]}  Nf6 {[%clk 0:02:57]} 4. d3 {[%clk 0:02:54]}  Bc5 {[%clk 0:02:57]} 5. Nbd2 {[%clk 0:02:48]}  O-O {[%clk 0:02:52]} 6. Bxc6 {[%clk 0:02:47]}  dxc6 {[%clk 0:02:50]} 7. Nc4 {[%clk 0:02:48]}  Ng4 {[%clk 0:02:43]} 8. O-O {[%clk 0:02:44]}  f6 {[%clk 0:02:30]} 9. h3 {[%clk 0:02:43]}  Nxf2 {[%clk 0:02:28]} 10. Rxf2 {[%clk 0:02:39]}  Bxf2+ {[%clk 0:02:28]} 11. Kxf2 {[%clk 0:02:38]}  a5 {[%clk 0:02:14]} 12. a4 {[%clk 0:02:36]}  Be6 {[%clk 0:02:10]} 13. Be3 {[%clk 0:02:32]}  Bxc4 {[%clk 0:02:04]} 14. dxc4 {[%clk 0:02:33]}  Qxd1 {[%clk 0:02:04]} 15. Rxd1 {[%clk 0:02:33]}  Rad8 {[%clk 0:02:04]} 16. Rd3 {[%clk 0:02:30]}  b6 {[%clk 0:01:58]} 17. Ke2 {[%clk 0:02:24]}  c5 {[%clk 0:01:58]} 18. Nd2 {[%clk 0:02:17]}  Kf7 {[%clk 0:01:57]} 19. Nb1 {[%clk 0:02:17]}  Ke6 {[%clk 0:01:58]} 20. Nc3 {[%clk 0:02:18]}  c6 {[%clk 0:01:57]} 21. b3 {[%clk 0:02:13]}  g6 {[%clk 0:01:55]} 22. Nd1 {[%clk 0:02:05]}  f5 {[%clk 0:01:55]} 23. Nf2 {[%clk 0:02:02]}  f4 {[%clk 0:01:52]} 24. Bc1 {[%clk 0:02:02]}  h5 {[%clk 0:01:52]} 25. Bb2 {[%clk 0:02:00]}  g5 {[%clk 0:01:47]} 26. Rxd8 {[%clk 0:01:59]}  Rxd8 {[%clk 0:01:47]} 27. Nd3 {[%clk 0:02:00]}  g4 {[%clk 0:01:27]} 28. hxg4 {[%clk 0:01:58]}  hxg4 {[%clk 0:01:27]} 29. Nxe5 {[%clk 0:01:58]}  Rg8 {[%clk 0:00:53]} 30. Kf2 {[%clk 0:01:44]}  Rd8 {[%clk 0:00:30]} 31. Nd3 {[%clk 0:01:39]}  Rf8 {[%clk 0:00:23]} 32. Bc3 {[%clk 0:01:03]}  Rf7 {[%clk 0:00:12]} 33. Bd2 {[%clk 0:00:56]}  f3 {[%clk 0:00:12]} 34. g3 {[%clk 0:00:54]}  Rh7 {[%clk 0:00:10]} 35. Nf4+ {[%clk 0:00:43]}  Ke5 {[%clk 0:00:09]} 36. Ke3 {[%clk 0:00:43]}  Rh2 {[%clk 0:00:08]} 37. Bc3+ {[%clk 0:00:44]}  Kd6 {[%clk 0:00:08]} 38. e5+ {[%clk 0:00:43]}  Ke7 {[%clk 0:00:07]} 39. Be1 {[%clk 0:00:33]}  Rxc2 {[%clk 0:00:06]} 40. Nd3 {[%clk 0:00:24]}  Re2+ {[%clk 0:00:05]} 41. Kf4 {[%clk 0:00:21]}  Rxe1 {[%clk 0:00:05]} 42. Nf2 {[%clk 0:00:17]}  Re2 {[%clk 0:00:04]} 43. Nxg4 {[%clk 0:00:17]}  f2 {[%clk 0:00:04]} 44. Nh2 {[%clk 0:00:18]}  Re1 {[%clk 0:00:04]} 45. Nf1 {[%clk 0:00:17]}  Rxf1 {[%clk 0:00:04]} 46. Kf3 {[%clk 0:00:17]}  Re1 {[%clk 0:00:04]} 47. Kxf2 {[%clk 0:00:18]}  Rxe5 {[%clk 0:00:05]} 48. Kf3 {[%clk 0:00:19]}  Ke6 {[%clk 0:00:05]} 49. Kf4 {[%clk 0:00:19]}  Re1 {[%clk 0:00:06]} 50. g4 {[%clk 0:00:19]}  Rb1 {[%clk 0:00:06]} 51. Kg5 {[%clk 0:00:20]}  Rxb3 {[%clk 0:00:06]} 52. Kg6 {[%clk 0:00:21]}  Rb4 {[%clk 0:00:06]} 53. g5 {[%clk 0:00:22]}  Rxa4 {[%clk 0:00:07]} 54. Kg7 {[%clk 0:00:23]}  Rxc4 {[%clk 0:00:08]} 55. g6 {[%clk 0:00:23]}  Rg4 {[%clk 0:00:08]} 56. Kh7 {[%clk 0:00:24]}  Rxg6 {[%clk 0:00:09]} 0-1


[Site "https://www.chess.com"]

[Event "Titled Tuesday Blitz April 26 Early 2022"]
[White "Vovk, Orest"]
[Black "Sanchez, Robert"]
[WhiteFideId "14113490"]
[BlackFideId "2034360"]
[WhiteElo "2203"]
[BlackElo "2411"]
[Result "1-0"]
[Round "05"]
[TimeControl "180+1"]
[Date "2022.04.26"]
[WhiteClock "0:01:08"]
[BlackClock "0:01:04"]

1. d3 {[%clk 0:03:00]}  d5 {[%clk 0:02:58]} 2. Nd2 {[%clk 0:03:01]}  e5 {[%clk 0:02:58]} 3. e4 {[%clk 0:02:48]}  Nf6 {[%clk 0:02:57]} 4. Ngf3 {[%clk 0:02:43]}  Nc6 {[%clk 0:02:57]} 5. Be2 {[%clk 0:02:43]}  Bc5 {[%clk 0:02:56]} 6. O-O {[%clk 0:02:43]}  O-O {[%clk 0:02:56]} 7. h3 {[%clk 0:02:44]}  a6 {[%clk 0:02:53]} 8. c3 {[%clk 0:02:44]}  Ba7 {[%clk 0:02:51]} 9. Re1 {[%clk 0:02:45]}  Re8 {[%clk 0:02:51]} 10. Bf1 {[%clk 0:02:45]}  h6 {[%clk 0:02:51]} 11. exd5 {[%clk 0:02:43]}  Nxd5 {[%clk 0:02:48]} 12. Nc4 {[%clk 0:02:43]}  Qf6 {[%clk 0:02:33]} 13. d4 {[%clk 0:02:31]}  e4 {[%clk 0:02:29]} 14. Qe2 {[%clk 0:02:18]}  Bxh3 {[%clk 0:02:20]} 15. gxh3 {[%clk 0:02:08]}  exf3 {[%clk 0:02:18]} 16. Qxe8+ {[%clk 0:02:09]}  Rxe8 {[%clk 0:02:18]} 17. Rxe8+ {[%clk 0:02:10]}  Kh7 {[%clk 0:02:18]} 18. Bd3+ {[%clk 0:02:10]}  g6 {[%clk 0:02:17]} 19. Bd2 {[%clk 0:01:47]}  Nf4 {[%clk 0:02:10]} 20. Bxf4 {[%clk 0:01:39]}  Qxf4 {[%clk 0:02:09]} 21. Re4 {[%clk 0:01:39]}  Qf5 {[%clk 0:02:01]} 22. Kh2 {[%clk 0:01:34]}  Nd8 {[%clk 0:01:42]} 23. Ne5 {[%clk 0:01:29]}  c6 {[%clk 0:01:34]} 24. Re3 {[%clk 0:01:24]}  Qf4+ {[%clk 0:01:33]} 25. Kh1 {[%clk 0:01:24]}  Bb8 {[%clk 0:01:19]} 26. Rxf3 {[%clk 0:01:24]}  Qh4 {[%clk 0:01:19]} 27. Nxf7 {[%clk 0:01:15]}  Nxf7 {[%clk 0:01:16]} 28. Rxf7+ {[%clk 0:01:16]}  Kg8 {[%clk 0:01:16]} 29. Rf3 {[%clk 0:01:15]}  Bf4 {[%clk 0:01:04]} 30. Bxg6 {[%clk 0:01:08]} 1-0


[Site "https://www.chess.com"]

[Event "Titled Tuesday Blitz April 26 Early 2022"]
[White "Wartiovaara, Oliver"]
[Black "Bristy, Mukherjee"]
[WhiteFideId "513024"]
[BlackFideId "25077325"]
[WhiteElo "1971"]
[BlackElo "1661"]
[Result "0-1"]
[Round "05"]
[TimeControl "180+1"]
[Date "2022.04.26"]
[WhiteClock "0:00:02"]
[BlackClock "0:00:39"]

1. e4 {[%clk 0:03:00]}  g6 {[%clk 0:02:56]} 2. d4 {[%clk 0:03:00]}  Bg7 {[%clk 0:02:57]} 3. Nf3 {[%clk 0:02:59]}  c5 {[%clk 0:02:56]} 4. c3 {[%clk 0:02:55]}  cxd4 {[%clk 0:02:56]} 5. cxd4 {[%clk 0:02:55]}  d5 {[%clk 0:02:56]} 6. e5 {[%clk 0:02:55]}  Nc6 {[%clk 0:02:56]} 7. Bb5 {[%clk 0:02:55]}  Bg4 {[%clk 0:02:53]} 8. Bxc6+ {[%clk 0:02:46]}  bxc6 {[%clk 0:02:52]} 9. O-O {[%clk 0:02:47]}  Bxf3 {[%clk 0:02:51]} 10. Qxf3 {[%clk 0:02:48]}  e6 {[%clk 0:02:51]} 11. Nc3 {[%clk 0:02:45]}  Ne7 {[%clk 0:02:49]} 12. Nb1 {[%clk 0:02:41]}  O-O {[%clk 0:02:48]} 13. Nc3 {[%clk 0:02:41]}  Nf5 {[%clk 0:02:47]} 14. Rd1 {[%clk 0:02:41]}  Qh4 {[%clk 0:02:46]} 15. g3 {[%clk 0:02:25]}  Qd8 {[%clk 0:02:30]} 16. Rb1 {[%clk 0:02:20]}  Qa5 {[%clk 0:02:30]} 17. g4 {[%clk 0:02:13]}  Ne7 {[%clk 0:02:28]} 18. Bg5 {[%clk 0:02:12]}  Nc8 {[%clk 0:02:26]} 19. b4 {[%clk 0:02:05]}  Qa6 {[%clk 0:02:20]} 20. Bf6 {[%clk 0:01:52]}  Rb8 {[%clk 0:02:16]} 21. Bxg7 {[%clk 0:01:44]}  Kxg7 {[%clk 0:02:13]} 22. Qf6+ {[%clk 0:01:45]}  Kg8 {[%clk 0:02:12]} 23. Rb3 {[%clk 0:01:39]}  Qb6 {[%clk 0:02:07]} 24. Ne2 {[%clk 0:01:38]}  Qd8 {[%clk 0:02:06]} 25. g5 {[%clk 0:01:32]}  Qxf6 {[%clk 0:01:57]} 26. gxf6 {[%clk 0:01:33]}  Nb6 {[%clk 0:01:56]} 27. Nf4 {[%clk 0:01:22]}  Nd7 {[%clk 0:01:51]} 28. Nd3 {[%clk 0:01:22]}  Rfc8 {[%clk 0:01:49]} 29. Rc1 {[%clk 0:01:20]}  Nb6 {[%clk 0:01:45]} 30. Nb2 {[%clk 0:01:19]}  Nd7 {[%clk 0:01:41]} 31. Na4 {[%clk 0:01:14]}  Kf8 {[%clk 0:01:38]} 32. Rbc3 {[%clk 0:01:06]}  Rxb4 {[%clk 0:01:36]} 33. Rxc6 {[%clk 0:01:06]}  Rd8 {[%clk 0:01:28]} 34. Nc5 {[%clk 0:00:54]}  Nxc5 {[%clk 0:01:21]} 35. R1xc5 {[%clk 0:00:55]}  Rxd4 {[%clk 0:01:20]} 36. Rc7 {[%clk 0:00:48]}  Ra4 {[%clk 0:01:14]} 37. Re7 {[%clk 0:00:46]}  Kg8 {[%clk 0:01:08]} 38. Rcc7 {[%clk 0:00:45]}  Rf8 {[%clk 0:01:07]} 39. Rxa7 {[%clk 0:00:42]}  Re4 {[%clk 0:01:06]} 40. Reb7 {[%clk 0:00:20]}  Rxe5 {[%clk 0:01:05]} 41. a4 {[%clk 0:00:18]}  Rf5 {[%clk 0:01:05]} 42. a5 {[%clk 0:00:19]}  Rxf6 {[%clk 0:01:06]} 43. a6 {[%clk 0:00:20]}  e5 {[%clk 0:01:06]} 44. Rd7 {[%clk 0:00:20]}  d4 {[%clk 0:01:05]} 45. Rd5 {[%clk 0:00:19]}  Re6 {[%clk 0:01:05]} 46. Ra5 {[%clk 0:00:18]}  Kg7 {[%clk 0:01:04]} 47. Rd7 {[%clk 0:00:18]}  Ra8 {[%clk 0:01:04]} 48. a7 {[%clk 0:00:18]}  Ree8 {[%clk 0:01:04]} 49. f3 {[%clk 0:00:16]}  Kh6 {[%clk 0:01:04]} 50. Kf2 {[%clk 0:00:15]}  f5 {[%clk 0:01:04]} 51. Rdd5 {[%clk 0:00:11]}  Kg5 {[%clk 0:00:59]} 52. Rxe5 {[%clk 0:00:11]}  Rxe5 {[%clk 0:00:59]} 53. Rxe5 {[%clk 0:00:12]}  Rxa7 {[%clk 0:00:59]} 54. Rd5 {[%clk 0:00:13]}  Ra2+ {[%clk 0:00:57]} 55. Kg3 {[%clk 0:00:13]}  Ra4 {[%clk 0:00:57]} 56. h4+ {[%clk 0:00:13]}  Kh6 {[%clk 0:00:57]} 57. Rd7 {[%clk 0:00:14]}  Rc4 {[%clk 0:00:56]} 58. Kh3 {[%clk 0:00:11]}  Rb4 {[%clk 0:00:56]} 59. Kg3 {[%clk 0:00:11]}  Ra4 {[%clk 0:00:54]} 60. Kh3 {[%clk 0:00:10]}  Ra3 {[%clk 0:00:52]} 61. Kg3 {[%clk 0:00:10]}  Rd3 {[%clk 0:00:52]} 62. Kf4 {[%clk 0:00:09]}  Rd1 {[%clk 0:00:52]} 63. Kg3 {[%clk 0:00:08]}  d3 {[%clk 0:00:52]} 64. Kf4 {[%clk 0:00:07]}  d2 {[%clk 0:00:51]} 65. Ke3 {[%clk 0:00:07]}  Rh1 {[%clk 0:00:48]} 66. Kxd2 {[%clk 0:00:04]}  Rxh4 {[%clk 0:00:48]} 67. Ke3 {[%clk 0:00:05]}  Rh1 {[%clk 0:00:48]} 68. Kf2 {[%clk 0:00:05]}  Kg5 {[%clk 0:00:48]} 69. Kg2 {[%clk 0:00:05]}  Rh4 {[%clk 0:00:48]} 70. Kg3 {[%clk 0:00:04]}  h5 {[%clk 0:00:48]} 71. Rg7 {[%clk 0:00:02]}  Rb4 {[%clk 0:00:48]} 72. Kg2 {[%clk 0:00:02]}  h4 {[%clk 0:00:46]} 73. Rg8 {[%clk 0:00:02]}  Rb2+ {[%clk 0:00:46]} 74. Kh3 {[%clk 0:00:02]}  Rb3 {[%clk 0:00:46]} 75. Kg2 {[%clk 0:00:03]}  h3+ {[%clk 0:00:44]} 76. Kxh3 {[%clk 0:00:02]}  Rxf3+ {[%clk 0:00:44]} 77. Kg2 {[%clk 0:00:03]}  Ra3 {[%clk 0:00:44]} 78. Rb8 {[%clk 0:00:03]}  Ra6 {[%clk 0:00:43]} 79. Rb4 {[%clk 0:00:03]}  f4 {[%clk 0:00:42]} 80. Kf3 {[%clk 0:00:03]}  Ra3+ {[%clk 0:00:41]} 81. Kf2 {[%clk 0:00:03]}  Kg4 {[%clk 0:00:41]} 82. Rb5 {[%clk 0:00:03]}  g5 {[%clk 0:00:41]} 83. Rc5 {[%clk 0:00:02]}  Ra2+ {[%clk 0:00:41]} 84. Kf1 {[%clk 0:00:02]}  f3 {[%clk 0:00:41]} 85. Rc3 {[%clk 0:00:01]}  Kg3 {[%clk 0:00:41]} 86. Ke1 {[%clk 0:00:02]}  g4 {[%clk 0:00:41]} 87. Rc4 {[%clk 0:00:02]}  Ra1+ {[%clk 0:00:38]} 88. Kd2 {[%clk 0:00:01]}  f2 {[%clk 0:00:39]} 89. Rxg4+ {[%clk 0:00:02]} 0-1


[Site "https://www.chess.com"]

[Event "Titled Tuesday Blitz April 26 Early 2022"]
[White "Xiong, Jeffery"]
[Black "Kamsky, Gata"]
[WhiteFideId "2047640"]
[BlackFideId "2000024"]
[WhiteElo "2727"]
[BlackElo "2645"]
[Result "0-1"]
[Round "05"]
[TimeControl "180+1"]
[Date "2022.04.26"]
[WhiteClock "0:00:08"]
[BlackClock "0:00:13"]

1. c4 {[%clk 0:02:44]}  e5 {[%clk 0:02:53]} 2. Nc3 {[%clk 0:02:43]}  Nc6 {[%clk 0:02:52]} 3. g3 {[%clk 0:02:43]}  Bc5 {[%clk 0:02:51]} 4. Bg2 {[%clk 0:02:43]}  a6 {[%clk 0:02:48]} 5. e3 {[%clk 0:02:43]}  Nge7 {[%clk 0:02:46]} 6. Nge2 {[%clk 0:02:42]}  Ba7 {[%clk 0:02:46]} 7. d4 {[%clk 0:02:42]}  d6 {[%clk 0:02:45]} 8. O-O {[%clk 0:02:38]}  O-O {[%clk 0:02:44]} 9. b3 {[%clk 0:02:38]}  Bd7 {[%clk 0:02:08]} 10. Bb2 {[%clk 0:02:38]}  f6 {[%clk 0:01:55]} 11. Nd5 {[%clk 0:02:34]}  Nxd5 {[%clk 0:01:52]} 12. cxd5 {[%clk 0:02:34]}  Ne7 {[%clk 0:01:51]} 13. Rc1 {[%clk 0:02:35]}  Kh8 {[%clk 0:01:45]} 14. Qd2 {[%clk 0:02:23]}  Bb6 {[%clk 0:01:39]} 15. f4 {[%clk 0:02:11]}  Nf5 {[%clk 0:01:14]} 16. e4 {[%clk 0:02:11]}  Nh6 {[%clk 0:01:08]} 17. Kh1 {[%clk 0:02:08]}  Qe8 {[%clk 0:01:01]} 18. h3 {[%clk 0:01:28]}  Qh5 {[%clk 0:00:53]} 19. f5 {[%clk 0:01:29]}  Bb5 {[%clk 0:00:52]} 20. Ng1 {[%clk 0:00:51]}  Bxf1 {[%clk 0:00:50]} 21. Rxf1 {[%clk 0:00:52]}  exd4 {[%clk 0:00:44]} 22. Ne2 {[%clk 0:00:51]}  Ng4 {[%clk 0:00:37]} 23. Bxd4 {[%clk 0:00:43]}  Ne5 {[%clk 0:00:28]} 24. Nf4 {[%clk 0:00:40]}  Qh6 {[%clk 0:00:22]} 25. Qf2 {[%clk 0:00:27]}  Bxd4 {[%clk 0:00:21]} 26. Qxd4 {[%clk 0:00:28]}  Rfc8 {[%clk 0:00:20]} 27. Qb4 {[%clk 0:00:16]}  b5 {[%clk 0:00:19]} 28. Rd1 {[%clk 0:00:14]}  c5 {[%clk 0:00:18]} 29. Qa5 {[%clk 0:00:12]}  c4 {[%clk 0:00:17]} 30. Qb6 {[%clk 0:00:12]}  cxb3 {[%clk 0:00:16]} 31. axb3 {[%clk 0:00:12]}  Qg5 {[%clk 0:00:16]} 32. Kh2 {[%clk 0:00:11]}  Rc3 {[%clk 0:00:16]} 33. Qf2 {[%clk 0:00:08]}  Rac8 {[%clk 0:00:16]} 34. Ne6 {[%clk 0:00:08]}  Qh5 {[%clk 0:00:15]} 35. Qf1 {[%clk 0:00:08]}  Ng4+ {[%clk 0:00:15]} 36. Kg1 {[%clk 0:00:08]}  Ne3 {[%clk 0:00:14]} 37. Nf4 {[%clk 0:00:08]}  Qxd1 {[%clk 0:00:13]} 0-1


[Site "https://www.chess.com"]

[Event "Titled Tuesday Blitz April 26 Early 2022"]
[White "Zia, Tahsin Tajwar"]
[Black "Onslow, Alfie"]
[WhiteFideId "10211888"]
[BlackFideId "436976"]
[WhiteElo "1800"]
[BlackElo "1884"]
[Result "1/2-1/2"]
[Round "05"]
[TimeControl "180+1"]
[Date "2022.04.26"]
[WhiteClock "0:00:08"]
[BlackClock "0:00:01"]

1. d4 {[%clk 0:03:00]}  Nf6 {[%clk 0:02:11]} 2. Nf3 {[%clk 0:03:01]}  c5 {[%clk 0:02:08]} 3. d5 {[%clk 0:02:57]}  b5 {[%clk 0:02:07]} 4. c4 {[%clk 0:02:44]}  a6 {[%clk 0:02:04]} 5. g3 {[%clk 0:02:40]}  g6 {[%clk 0:02:03]} 6. Bg2 {[%clk 0:02:26]}  d6 {[%clk 0:02:02]} 7. O-O {[%clk 0:02:21]}  Bg7 {[%clk 0:02:02]} 8. Re1 {[%clk 0:02:16]}  O-O {[%clk 0:02:02]} 9. Nc3 {[%clk 0:02:11]}  b4 {[%clk 0:01:59]} 10. Nb1 {[%clk 0:02:07]}  Nbd7 {[%clk 0:01:57]} 11. Nbd2 {[%clk 0:02:03]}  a5 {[%clk 0:01:55]} 12. a4 {[%clk 0:01:51]}  bxa3 {[%clk 0:01:46]} 13. Rxa3 {[%clk 0:01:50]}  Nb6 {[%clk 0:01:46]} 14. e4 {[%clk 0:01:42]}  Nfd7 {[%clk 0:01:40]} 15. Qc2 {[%clk 0:01:20]}  a4 {[%clk 0:01:38]} 16. b3 {[%clk 0:00:51]}  axb3 {[%clk 0:01:38]} 17. Qxb3 {[%clk 0:00:45]}  Rxa3 {[%clk 0:01:26]} 18. Qxa3 {[%clk 0:00:42]}  Qc7 {[%clk 0:01:18]} 19. Bb2 {[%clk 0:00:26]}  Bxb2 {[%clk 0:01:08]} 20. Qxb2 {[%clk 0:00:27]}  Ba6 {[%clk 0:01:09]} 21. Qc2 {[%clk 0:00:19]}  Ra8 {[%clk 0:01:03]} 22. e5 {[%clk 0:00:14]}  dxe5 {[%clk 0:00:53]} 23. h3 {[%clk 0:00:14]}  Bb7 {[%clk 0:00:50]} 24. h4 {[%clk 0:00:14]}  h5 {[%clk 0:00:45]} 25. Ne4 {[%clk 0:00:13]}  Nc8 {[%clk 0:00:43]} 26. Qd2 {[%clk 0:00:13]}  Nd6 {[%clk 0:00:43]} 27. Qh6 {[%clk 0:00:12]}  Nxe4 {[%clk 0:00:38]} 28. Rxe4 {[%clk 0:00:12]}  Ra1+ {[%clk 0:00:36]} 29. Kh2 {[%clk 0:00:12]}  Nf6 {[%clk 0:00:37]} 30. Ng5 {[%clk 0:00:05]}  Qd8 {[%clk 0:00:31]} 31. Bf3 {[%clk 0:00:05]}  Qf8 {[%clk 0:00:29]} 32. Qxf8+ {[%clk 0:00:05]}  Kxf8 {[%clk 0:00:30]} 33. Rxe5 {[%clk 0:00:06]}  Rc1 {[%clk 0:00:23]} 34. Be2 {[%clk 0:00:06]}  Ba6 {[%clk 0:00:20]} 35. Kg2 {[%clk 0:00:04]}  Bxc4 {[%clk 0:00:20]} 36. Bxc4 {[%clk 0:00:04]}  Rxc4 {[%clk 0:00:20]} 37. Re1 {[%clk 0:00:05]}  Rd4 {[%clk 0:00:21]} 38. Rb1 {[%clk 0:00:04]}  Rxd5 {[%clk 0:00:20]} 39. Rb8+ {[%clk 0:00:05]}  Kg7 {[%clk 0:00:20]} 40. Rc8 {[%clk 0:00:06]}  Ng4 {[%clk 0:00:16]} 41. f3 {[%clk 0:00:05]}  Rd2+ {[%clk 0:00:16]} 42. Kg1 {[%clk 0:00:06]}  Ne3 {[%clk 0:00:08]} 43. Rc7 {[%clk 0:00:06]}  Nf5 {[%clk 0:00:05]} 44. g4 {[%clk 0:00:04]}  hxg4 {[%clk 0:00:05]} 45. fxg4 {[%clk 0:00:05]}  Nxh4 {[%clk 0:00:05]} 46. Rxe7 {[%clk 0:00:06]}  Kf6 {[%clk 0:00:05]} 47. Ne4+ {[%clk 0:00:04]}  Kxe7 {[%clk 0:00:06]} 48. Nxd2 {[%clk 0:00:05]}  Kd6 {[%clk 0:00:06]} 49. Kf2 {[%clk 0:00:05]}  Ke5 {[%clk 0:00:06]} 50. Kg3 {[%clk 0:00:05]}  g5 {[%clk 0:00:06]} 51. Nc4+ {[%clk 0:00:06]}  Kd4 {[%clk 0:00:06]} 52. Nd6 {[%clk 0:00:06]}  c4 {[%clk 0:00:05]} 53. Kf2 {[%clk 0:00:06]}  c3 {[%clk 0:00:04]} 54. Ke2 {[%clk 0:00:06]}  f6 {[%clk 0:00:04]} 55. Nb5+ {[%clk 0:00:05]}  Kc4 {[%clk 0:00:03]} 56. Nd6+ {[%clk 0:00:05]}  Kd5 {[%clk 0:00:04]} 57. Ne8 {[%clk 0:00:04]}  Ke6 {[%clk 0:00:04]} 58. Nc7+ {[%clk 0:00:04]}  Kd7 {[%clk 0:00:04]} 59. Nd5 {[%clk 0:00:04]}  Ke6 {[%clk 0:00:04]} 60. Nxc3 {[%clk 0:00:05]}  Ng6 {[%clk 0:00:05]} 61. Kf3 {[%clk 0:00:05]}  Ne5+ {[%clk 0:00:06]} 62. Kg3 {[%clk 0:00:05]}  Kd6 {[%clk 0:00:06]} 63. Ne4+ {[%clk 0:00:06]}  Ke6 {[%clk 0:00:06]} 64. Nc5+ {[%clk 0:00:06]}  Kd6 {[%clk 0:00:07]} 65. Ne4+ {[%clk 0:00:07]}  Ke6 {[%clk 0:00:07]} 66. Nf2 {[%clk 0:00:07]}  Kd5 {[%clk 0:00:07]} 67. Nd1 {[%clk 0:00:08]}  Ke4 {[%clk 0:00:06]} 68. Nc3+ {[%clk 0:00:08]}  Kd4 {[%clk 0:00:05]} 69. Nb5+ {[%clk 0:00:08]}  Kd5 {[%clk 0:00:04]} 70. Nc3+ {[%clk 0:00:07]}  Kd4 {[%clk 0:00:03]} 71. Nb5+ {[%clk 0:00:08]}  Kc5 {[%clk 0:00:04]} 72. Nc3 {[%clk 0:00:08]}  Kd4 {[%clk 0:00:01]} 1/2-1/2


[Site "https://www.chess.com"]